bitfinex-derivatives/quotes_SOLF0:USTF0_20241208
["timestamp","ask_amount","ask_price","bid_price","bid_amount"]
[1733673723243,6.53380056,237.92,237.86,6.53380056]
[1733673724248,6.53380056,237.92,237.9,2.1003]
[1733673724945,6.53380056,237.92,237.81,2.6749]
[1733673725145,6.53380056,237.86,237.81,4.6149]
[1733673726250,1.94,237.95,237.85,2.1007]
[1733673726251,6.53380056,237.88,237.85,2.1007]
[1733673727549,6.53380056,237.86,237.84,2.1008]
[1733673728248,6.53380056,237.88,237.86,2.1006]
[1733673728454,6.53380056,237.88,237.74,1.3921]
[1733673728757,6.53380056,237.88,237.8,6.53380056]
[1733673730649,2.6613,237.99,237.82,6.53380056]
[1733673730854,6.53380056,237.9,237.84,6.53380056]
[1733673731053,6.53380056,237.9,237.74,1.3921]
[1733673731257,6.53380056,237.88,237.75,10.82072096]
[1733673731454,6.53380056,237.86,237.8,6.53380056]
[1733673731752,6.53380056,237.86,237.83,2.1009]
[1733673731953,6.53380056,237.86,237.78,6.53380056]
[1733673732147,6.53380056,237.86,237.8,2.1012]
[1733673732349,6.53380056,237.86,237.78,6.53380056]
[1733673732854,6.53380056,237.86,237.83,2.1008]
[1733673733850,1.94,237.88,237.76,6.53380056]
[1733673733851,6.53380056,237.84,237.76,6.53380056]
[1733673734050,6.53380056,237.82,237.77,2.56170524]
[1733673734256,6.53380056,237.82,237.74,7.92590056]
[1733673734557,1.3411,237.87,237.78,2.1013]
[1733673734558,6.53380056,237.8,237.78,2.1013]
[1733673734857,6.53380056,237.8,237.74,7.92590056]
[1733673735257,6.53380056,237.8,237.78,2.1013]
[1733673735757,6.53380056,237.8,237.61,93.03819416]
[1733673735959,6.53380056,237.77,237.7,6.53380056]
[1733673736150,6.53380056,237.79,237.72,6.53380056]
[1733673736455,6.53380056,237.81,237.72,6.53380056]
[1733673737156,6.53380056,237.81,237.78,2.1014]
[1733673737350,4.041,237.83,237.78,2.1014]
[1733673737657,6.53380056,237.8,237.78,2.1014]
[1733673737853,2.1013,237.79,237.69,1.94]
[1733673738054,6.53380056,237.78,237.71,6.53380056]
[1733673738650,6.53380056,237.78,237.7,6.53380056]
[1733673738856,6.53380056,237.78,237.71,2.56471633]
[1733673739153,6.53380056,237.76,237.73,2.1018]
[1733673739953,8.47380056,237.76,237.73,2.1018]
[1733673740260,8.47380056,237.76,237.71,2.1019]
[1733673740450,8.47380056,237.76,237.7,6.53380056]
[1733673740857,8.47380056,237.76,237.71,2.1019]
[1733673741061,8.47380056,237.76,237.7,6.53380056]
[1733673741353,1.94,237.76,237.73,2.1017]
[1733673741558,1.94,237.76,237.7,6.53380056]
[1733673742149,8.63510056,237.8,237.76,2.1015]
[1733673742354,1.94,237.79,237.76,2.1015]
[1733673744654,2.1014,237.78,237.74,2.1017]
[1733673745260,6.53380056,237.8,237.74,6.53380056]
[1733673745562,1.94,237.79,237.76,2.1015]
[1733673747354,6.53380056,237.78,237.73,2.1018]
[1733673747965,2.1016,237.76,237.72,2.1019]
[1733673748161,8.63540056,237.76,237.72,2.1019]
[1733673748661,8.63540056,237.76,237.69,6.53380056]
[1733673748662,6.53380056,237.76,237.69,6.53380056]
[1733673749363,2.1015,237.77,237.72,2.1018]
[1733673749663,2.1015,237.77,237.71,6.53380056]
[1733673750664,2.1015,237.77,237.73,2.1018]
[1733673750863,6.53380056,237.78,237.61,4.2057]
[1733673751063,2.1016,237.76,237.7,6.53380056]
[1733673751263,6.53380056,237.78,237.73,2.1018]
[1733673752667,2.1015,237.77,237.73,2.1018]
[1733673753063,6.53380056,237.78,237.7,6.53380056]
[1733673753368,2.1015,237.77,237.7,6.53380056]
[1733673753770,6.53380056,237.78,237.74,2.1017]
[1733673754561,8.63520056,237.78,237.74,2.1017]
[1733673754965,6.53380056,237.78,237.74,2.1017]
[1733673757668,8.63520056,237.78,237.74,2.1017]
[1733673758066,1.94,237.79,237.75,2.1016]
[1733673758266,8.47380056,237.79,237.75,2.1016]
[1733673759271,10.57510056,237.79,237.76,2.1015]
[1733673761069,2.1016,237.76,237.73,2.1018]
[1733673761375,6.53380056,237.75,237.73,2.1018]
[1733673761564,1.94,237.74,237.73,2.1018]
[1733673762169,1.94,237.74,237.54,6.8247]
[1733673762475,6.53380056,237.69,237.61,6.53380056]
[1733673762672,6.53380056,237.67,237.61,6.53380056]
[1733673762871,2.1024,237.66,237.62,2.1028]
[1733673763069,6.53380056,237.65,237.58,6.53380056]
[1733673764072,2.1026,237.64,237.59,2.103]
[1733673764272,1.94,237.63,237.59,2.103]
[1733673764571,10.57650056,237.63,237.47,1.94]
[1733673764772,10.57650056,237.63,237.55,6.53380056]
[1733673765664,10.57650056,237.63,237.57,2.1032]
[1733673767970,2.1028,237.62,237.57,2.1032]
[1733673769875,2.1028,237.62,237.58,2.1031]
[1733673773072,6.53380056,237.61,237.58,2.1031]
[1733673775075,6.53380056,237.61,237.48,4.0796]
[1733673775076,6.53380056,237.59,237.56,2.1033]
[1733673775382,6.53380056,237.57,237.5,6.53380056]
[1733673776378,6.53380056,237.51,237.48,2.7839]
[1733673777577,6.53380056,237.51,237.5,2.1038]
[1733673778876,6.53380056,237.51,237.4,3.3022]
[1733673778877,6.53380056,237.51,237.44,6.53380056]
[1733673779485,6.53380056,237.51,237.44,2.1044]
[1733673779486,6.53380056,237.49,237.44,2.1044]
[1733673779689,6.53380056,237.47,237.41,2.6649]
[1733673779878,8.49380056,237.47,237.41,9.19870056]
[1733673780382,8.49380056,237.47,237.41,2.6649]
[1733673781184,6.53380056,237.42,237.36,47.53863649]
[1733673781391,6.53380056,237.44,237.38,6.53380056]
[1733673781684,1.96,237.47,237.42,6.53380056]
[1733673782082,1.96,237.49,237.46,6.53380056]
[1733673782884,6.53380056,237.52,237.49,2.1037]
[1733673783191,1.96,237.51,237.49,2.1037]
[1733673785490,1.96,237.51,237.46,6.53380056]
[1733673785491,1.96,237.51,237.5,2.1036]
[1733673786694,1.96,237.51,237.46,6.53380056]
[1733673786695,1.96,237.51,237.46,2.1039]
[1733673786900,6.53380056,237.49,237.46,2.1039]
[1733673787299,1.96,237.51,237.46,2.1039]
[1733673787603,1.96,237.54,237.5,6.53380056]
[1733673787801,1.96,237.56,237.52,6.53380056]
[1733673788502,1.96,237.58,237.52,6.53380056]
[1733673790604,1.96,237.58,237.55,2.1031]
[1733673790805,1.96,237.58,237.52,6.53380056]
[1733673791305,1.96,237.58,237.57,2.103]
[1733673791502,13.63194876,237.63,237.44,4.1041]
[1733673791503,1.96,237.6,237.52,10.20904876]
[1733673791696,1.96,237.62,237.53,2.6318]
[1733673791896,1.96,237.62,237.53,3.9268]
[1733673792703,1.96,237.62,237.59,2.1028]
[1733673794104,1.96,237.62,237.53,5.8668]
[1733673794302,10.20904876,237.7,237.55,10.20904876]
[1733673794502,1.94,237.69,237.55,10.20904876]
[1733673794807,1.94,237.69,237.64,2.1024]
[1733673795006,2.7627,237.8,237.58,10.20904876]
[1733673795007,2.1017,237.72,237.58,10.20904876]
[1733673795211,1.94,237.72,237.61,10.20904876]
[1733673795513,1.94,237.72,237.62,2.6754]
[1733673796007,1.94,237.72,237.67,2.1021]
[1733673796711,1.94,237.72,237.63,1.3528]
[1733673797310,10.20904876,237.7,237.63,1.3528]
[1733673797915,10.20904876,237.7,237.62,1.3443]
[1733673799117,10.20904876,237.7,237.62,3.4469]
[1733673799519,12.31094876,237.7,237.64,2.1024]
[1733673799815,12.31094876,237.7,237.62,1.3443]
[1733673800711,12.31094876,237.7,237.65,2.1023]
[1733673800915,2.102,237.69,237.62,1.3443]
[1733673801514,2.1021,237.67,237.61,2.1026]
[1733673801714,4.0421,237.67,237.57,1.2754]
[1733673802715,12.14904876,237.67,237.57,1.2754]
[1733673803212,1.94,237.67,237.57,1.2754]
[1733673803519,1.2916,237.79,237.57,1.2754]
[1733673803520,1.94,237.76,237.65,10.20904876]
[1733673803724,1.2916,237.79,237.68,10.20904876]
[1733673804019,1.94,237.78,237.68,10.20904876]
[1733673804316,1.94,237.78,237.74,2.1015]
[1733673805614,1.94,237.78,237.69,2.5282]
[1733673805818,1.94,237.78,237.72,2.1016]
[1733673806617,4.0412,237.78,237.72,2.1016]
[1733673806818,1.94,237.78,237.72,2.1016]
[1733673807321,1.94,237.78,237.73,2.1015]
[1733673808624,4.0412,237.78,237.73,2.1015]
[1733673809721,4.0412,237.78,237.66,1.94]
[1733673809722,1.94,237.78,237.7,2.1018]
[1733673810124,10.20904876,237.76,237.65,1.283]
[1733673810520,10.20904876,237.76,237.7,2.1019]
[1733673810720,10.20904876,237.76,237.65,1.283]
[1733673810926,2.1015,237.74,237.65,1.283]
[1733673811127,1.94,237.73,237.65,1.283]
[1733673811927,12.14904876,237.73,237.64,2.6571]
[1733673812429,2.1019,237.7,237.64,2.1024]
[1733673812636,2.1019,237.7,237.58,12.14904876]
[1733673812828,12.14904876,237.73,237.58,12.14904876]
[1733673813027,12.14904876,237.73,237.65,2.1023]
[1733673814221,10.20904876,237.7,237.58,1.94]
[1733673814729,10.20904876,237.7,237.62,2.1025]
[1733673814730,2.1022,237.66,237.62,2.1025]
[1733673814932,1.94,237.66,237.58,1.94]
[1733673815422,1.94,237.66,237.62,2.1025]
[1733673815822,1.94,237.66,237.55,12.14904876]
[1733673816733,4.0422,237.66,237.61,2.1027]
[1733673817632,4.0422,237.66,237.55,12.14904876]
[1733673817831,4.0422,237.66,237.59,2.1028]
[1733673818035,1.94,237.66,237.55,12.14904876]
[1733673818531,1.94,237.66,237.61,2.1027]
[1733673819435,4.0422,237.66,237.6,2.1027]
[1733673819833,4.0422,237.66,237.55,12.14904876]
[1733673820139,4.0422,237.66,237.56,2.1031]
[1733673820140,2.1024,237.64,237.56,2.1031]
[1733673820340,1.94,237.66,237.53,2.6596]
[1733673820937,10.20904876,237.64,237.53,4.7629]
[1733673821137,10.20904876,237.64,237.53,2.6596]
[1733673822731,2.1026,237.62,237.55,2.1032]
[1733673822932,1.94,237.61,237.55,2.1032]
[1733673823131,1.94,237.61,237.56,2.1031]
[1733673825230,4.0427,237.61,237.54,2.1032]
[1733673825428,1.94,237.61,237.54,2.1032]
[1733673826131,2.1031,237.57,237.46,10.20904876]
[1733673826338,2.1031,237.57,237.47,1.94]
[1733673827131,2.1029,237.58,237.51,2.1035]
[1733673828835,2.1029,237.58,237.52,2.1034]
[1733673832140,10.20904876,237.64,237.49,10.20904876]
[1733673832340,1.94,237.63,237.57,2.103]
[1733673832647,12.31154876,237.64,237.57,2.103]
[1733673832841,1.94,237.63,237.57,2.103]
[1733673833247,6.53415242,237.58,237.53,2.7095]
[1733673833544,6.53415242,237.58,237.53,1.3206]
[1733673834849,6.53415242,237.58,237.54,2.1033]
[1733673837247,6.53415242,237.58,237.53,1.3206]
[1733673837449,1.94,237.59,237.48,6.53415242]
[1733673837450,6.53415242,237.56,237.48,6.53415242]
[1733673837950,6.53415242,237.56,237.52,2.1034]
[1733673840251,6.53415242,237.56,237.5,2.1036]
[1733673840548,6.53415242,237.56,237.48,6.53415242]
[1733673841050,6.53415242,237.56,237.53,2.1033]
[1733673841245,6.53415242,237.58,237.53,2.1033]
[1733673841853,6.53415242,237.58,237.53,2.1035]
[1733673842055,1.94,237.59,237.54,6.53415242]
[1733673842851,1.94,237.59,237.56,2.1033]
[1733673843948,1.94,237.59,237.47,3.2859]
[1733673843949,6.53415242,237.58,237.53,2.1035]
[1733673844155,6.53415242,237.55,237.48,8.47415242]
[1733673845247,10.21196781,237.58,237.48,1.94]
[1733673846154,10.21196781,237.58,237.51,2.1038]
[1733673846747,2.1033,237.56,237.51,2.1038]
[1733673846947,2.1033,237.56,237.44,1.94]
[1733673847154,10.21196781,237.55,237.43,1.2788]
[1733673847354,1.94,237.54,237.43,3.2188]
[1733673847948,1.94,237.54,237.43,1.2788]
[1733673848350,10.21196781,237.52,237.43,1.2788]
[1733673848850,10.21196781,237.52,237.45,2.1042]
[1733673848851,2.1038,237.51,237.45,2.1042]
[1733673849058,10.21196781,237.52,237.38,10.21196781]
[1733673849257,10.21196781,237.49,237.37,2.7631]
[1733673849454,4.0441,237.48,237.41,2.1046]
[1733673850559,4.0441,237.48,237.42,2.1046]
[1733673850756,4.0441,237.48,237.37,1.3991]
[1733673850757,2.1044,237.44,237.37,1.3991]
[1733673850955,12.15196781,237.43,237.37,1.3991]
[1733673851355,12.15196781,237.43,237.31,1.94]
[1733673851951,12.15196781,237.43,237.34,2.1052]
[1733673852157,2.1046,237.42,237.31,1.94]
[1733673852553,10.21196781,237.4,237.3,2.743]
[1733673853056,10.21196781,237.4,237.34,2.1052]
[1733673853264,12.31676781,237.4,237.34,2.1052]
[1733673853662,10.21196781,237.4,237.34,2.1052]
[1733673854163,10.21196781,237.4,237.26,12.15196781]
[1733673854362,1.94,237.43,237.38,2.1049]
[1733673854661,1.94,237.43,237.32,12.15196781]
[1733673854863,1.94,237.47,237.35,10.21196781]
[1733673855462,1.94,237.47,237.43,2.1044]
[1733673856660,10.21196781,237.46,237.33,3.958]
[1733673856863,10.21196781,237.43,237.33,2.6595]
[1733673857062,1.94,237.42,237.33,2.6595]
[1733673857668,1.94,237.42,237.41,2.1046]
[1733673857867,12.15196781,237.46,237.35,1.96]
[1733673859565,12.15196781,237.46,237.42,2.1045]
[1733673859968,12.15196781,237.46,237.35,1.96]
[1733673860263,14.25616781,237.46,237.35,1.96]
[1733673860470,14.25616781,237.46,237.34,1.3211]
[1733673860869,10.21196781,237.43,237.33,2.6595]
[1733673861270,12.15196781,237.46,237.33,2.6595]
[1733673861469,12.15196781,237.46,237.4,2.1047]
[1733673861666,12.15196781,237.46,237.33,2.6595]
[1733673863575,2.1043,237.45,237.39,2.1048]
[1733673864365,12.15196781,237.46,237.4,2.1047]
[1733673864974,10.21196781,237.46,237.42,2.1045]
[1733673865173,1.3396,237.48,237.36,10.21196781]
[1733673865478,1.96,237.46,237.36,10.21196781]
[1733673865976,1.96,237.46,237.44,2.1043]
[1733673866367,1.96,237.46,237.36,10.21196781]
[1733673866368,12.17196781,237.46,237.34,1.3928]
[1733673866576,12.17196781,237.46,237.39,2.1047]
[1733673866577,10.21196781,237.43,237.39,2.1047]
[1733673866769,10.21196781,237.43,237.34,1.3928]
[1733673866970,10.21196781,237.43,237.33,2.6595]
[1733673866971,10.21196781,237.43,237.36,2.1051]
[1733673867172,10.21196781,237.43,237.33,2.6595]
[1733673867569,10.21196781,237.4,237.35,2.1052]
[1733673869771,10.21196781,237.4,237.28,3.2983]
[1733673870069,10.21196781,237.34,237.25,2.5362]
[1733673870272,12.17196781,237.34,237.25,2.5362]
[1733673870470,14.27726781,237.34,237.26,2.1059]
[1733673870877,12.17196781,237.34,237.25,1.269]
[1733673871279,12.17196781,237.34,237.21,50.11687895]
[1733673871483,12.17196781,237.34,237.22,5.71875958]
[1733673871678,12.17196781,237.34,237.23,2.55736341]
[1733673871879,10.21196781,237.31,237.27,2.1059]
[1733673872978,1.96,237.34,237.22,2.10774808]
[1733673872979,12.17196781,237.34,237.22,2.10774808]
[1733673873180,1.96,237.34,237.23,12.76707869]
[1733673873482,1.96,237.34,237.23,10.21196781]
[1733673874075,12.17196781,237.34,237.31,2.1055]
[1733673874277,12.17196781,237.34,237.23,10.21196781]
[1733673874477,1.96,237.34,237.24,2.55447598]
[1733673874675,10.21196781,237.37,237.23,10.21196781]
[1733673874875,1.96,237.36,237.34,2.1052]
[1733673875272,1.96,237.36,237.27,4.5652]
[1733673875482,1.96,237.36,237.32,2.1054]
[1733673876782,1.96,237.36,237.3,2.1056]
[1733673877378,10.21196781,237.34,237.3,2.1056]
[1733673878081,10.21196781,237.34,237.31,2.1055]
[1733673878782,10.21196781,237.34,237.3,2.1056]
[1733673879885,10.21196781,237.34,237.2,10.21196781]
[1733673880087,10.21196781,237.34,237.21,1.96]
[1733673880583,12.31726781,237.34,237.28,2.1057]
[1733673880780,10.21196781,237.34,237.21,1.96]
[1733673881083,10.21196781,237.34,237.21,12.17196781]
[1733673881278,10.21196781,237.34,237.24,2.1061]
[1733673881482,10.21196781,237.34,237.21,12.17196781]
[1733673882483,10.21196781,237.34,237.29,2.1056]
[1733673882878,10.21196781,237.34,237.21,12.17196781]
[1733673884488,10.21196781,237.34,237.29,2.1056]
[1733673884987,12.31726781,237.34,237.29,2.1056]
[1733673885184,12.31726781,237.34,237.28,2.1058]
[1733673885382,10.21196781,237.31,237.28,2.1058]
[1733673885591,12.17196781,237.31,237.28,2.1058]
[1733673885781,12.17196781,237.31,237.21,1.96]
[1733673886084,12.17196781,237.31,237.27,2.1059]
[1733673886285,1.96,237.31,237.21,1.96]
[1733673886481,1.96,237.31,237.21,12.17196781]
[1733673887691,1.96,237.31,237.3,2.1056]
[1733673890292,1.96,237.31,237.21,12.17196781]
[1733673890491,1.96,237.31,237.29,2.1056]
[1733673891284,1.96,237.31,237.28,2.1058]
[1733673891285,6.54855048,237.3,237.28,2.1058]
[1733673892393,1.96,237.31,237.28,2.1058]
[1733673892590,1.96,237.31,237.23,6.54855048]
[1733673892794,6.54855048,237.3,237.29,2.1057]
[1733673893189,1.96,237.31,237.27,2.1058]
[1733673895588,1.96,237.31,237.21,1.96]
[1733673895787,1.96,237.31,237.25,2.106]
[1733673896389,10.23342043,237.29,237.25,2.106]
[1733673897191,10.23342043,237.29,237.23,2.1062]
[1733673898299,10.23342043,237.26,237.17,2.6052]
[1733673898597,10.23342043,237.23,237.17,2.6052]
[1733673898794,12.19342043,237.23,237.17,2.6052]
[1733673899392,12.19342043,237.23,237.1,1.3599]
[1733673899594,12.19342043,237.23,237.11,8.92176644]
[1733673899797,12.19342043,237.23,237.12,3.6213993]
[1733673899997,12.19342043,237.23,237.13,2.56723193]
[1733673900298,12.19342043,237.23,237.1,3.3199]
[1733673900504,12.19342043,237.23,237.11,2.24725812]
[1733673900801,12.19342043,237.23,237.19,2.1066]
[1733673900998,2.6497,237.29,237.11,10.23342043]
[1733673900999,10.23342043,237.26,237.11,10.23342043]
[1733673901197,1.96,237.26,237.18,2.1067]
[1733673901391,1.96,237.26,237.15,1.96]
[1733673901597,1.96,237.26,237.16,3.8829313]
[1733673901803,1.96,237.26,237.16,1.3163]
[1733673902400,1.96,237.26,237.24,2.1061]
[1733673904403,12.19342043,237.26,237.24,2.1061]
[1733673905801,12.19342043,237.26,237.16,11.54972043]
[1733673905802,1.96,237.26,237.16,11.54972043]
[1733673906102,10.23342043,237.29,237.16,11.54972043]
[1733673906103,1.96,237.29,237.16,11.54972043]
[1733673906298,12.19342043,237.29,237.16,11.54972043]
[1733673906602,14.29912043,237.29,237.16,11.54972043]
[1733673906805,12.19342043,237.29,237.16,11.54972043]
[1733673908495,1.96,237.29,237.16,11.54972043]
[1733673908695,1.96,237.29,237.19,10.23342043]
[1733673908900,1.96,237.29,237.2,3.2375]
[1733673909404,1.96,237.29,237.21,1.3127]
[1733673909599,10.23342043,237.33,237.21,1.3127]
[1733673909804,12.19342043,237.33,237.21,1.3127]
[1733673910606,12.19342043,237.33,237.29,2.1056]
[1733673910804,1.96,237.33,237.29,2.1056]
[1733673911604,10.23342043,237.35,237.22,10.23342043]
[1733673911902,4.0255,237.43,237.25,12.19342043]
[1733673911903,1.96,237.36,237.25,12.19342043]
[1733673912111,1.96,237.36,237.26,1.3706]
[1733673912297,10.23342043,237.41,237.28,10.23342043]
[1733673912503,1.96,237.4,237.29,1.3775]
[1733673912705,1.96,237.41,237.3,1.96]
[1733673913008,1.96,237.41,237.4,2.1047]
[1733673913214,1.96,237.41,237.3,1.96]
[1733673913215,10.23342043,237.44,237.31,10.23342043]
[1733673913503,12.19342043,237.44,237.32,3.62080694]
[1733673913709,10.23342043,237.44,237.42,2.1045]
[1733673913904,10.23342043,237.44,237.33,2.56618918]
[1733673914506,10.23342043,237.44,237.36,2.1051]
[1733673914705,10.23342043,237.44,237.33,2.56618918]
[1733673915301,10.23342043,237.44,237.42,2.1046]
[1733673915905,1.96,237.45,237.43,2.1045]
[1733673916402,10.23342043,237.44,237.36,1.96]
[1733673916605,10.23342043,237.44,237.4,2.1047]
[1733673917705,10.23342043,237.44,237.35,1.2906]
[1733673918011,10.23342043,237.41,237.33,4.52618918]
[1733673918408,10.23342043,237.48,237.33,4.52618918]
[1733673918409,10.23342043,237.38,237.33,2.56618918]
[1733673920612,1.96,237.4,237.33,2.56618918]
[1733673921903,12.17342043,237.43,237.33,2.56618918]
[1733673922102,12.17342043,237.43,237.34,1.3793]
[1733673922307,1.94,237.43,237.34,1.3793]
[1733673922513,1.94,237.43,237.42,2.1046]
[1733673922913,10.23342043,237.46,237.35,10.23342043]
[1733673923312,10.23342043,237.46,237.43,2.1044]
[1733673924008,10.23342043,237.46,237.41,2.1046]
[1733673926112,10.23342043,237.46,237.37,1.94]
[1733673927419,1.94,237.47,237.34,1.3793]
[1733673927420,10.23342043,237.43,237.34,1.3793]
[1733673927618,1.94,237.42,237.34,1.3793]
[1733673928119,1.94,237.42,237.37,2.105]
[1733673930127,10.23342043,237.4,237.29,2.7132]
[1733673930328,10.23342043,237.37,237.29,1.3775]
[1733673930531,12.17342043,237.37,237.31,2.1055]
[1733673930734,12.17342043,237.37,237.24,1.3593]
[1733673930925,1.94,237.37,237.26,10.23342043]
[1733673931127,1.94,237.37,237.34,2.1052]
[1733673931325,1.94,237.37,237.26,10.23342043]
[1733673931628,10.23342043,237.4,237.26,10.23342043]
[1733673931830,1.94,237.43,237.32,10.23342043]
[1733673932126,1.94,237.43,237.32,12.17342043]
[1733673932332,1.94,237.43,237.41,2.1046]
[1733673932728,1.94,237.43,237.33,2.698]
[1733673934330,1.3828,237.48,237.35,10.23342043]
[1733673934531,1.94,237.48,237.35,10.23342043]
[1733673936128,1.94,237.48,237.33,4.0905]
[1733673936129,10.23342043,237.46,237.4,2.1047]
[1733673936530,1.94,237.48,237.35,10.23342043]
[1733673937031,1.94,237.48,237.44,2.1044]
[1733673938135,1.94,237.48,237.43,2.1045]
[1733673939032,1.94,237.48,237.44,2.1044]
[1733673939233,10.23342043,237.49,237.38,10.23342043]
[1733673939437,1.94,237.5,237.38,10.23342043]
[1733673939734,10.23342043,237.52,237.48,2.104]
[1733673939735,1.94,237.52,237.48,2.104]
[1733673939933,1.94,237.52,237.41,10.23342043]
[1733673940434,1.94,237.52,237.42,1.3668]
[1733673940631,1.94,237.52,237.42,2.7406]
[1733673940828,1.94,237.52,237.42,4.6806]
[1733673941027,10.23342043,237.58,237.44,10.23342043]
[1733673941226,1.94,237.57,237.53,2.1036]
[1733673942733,1.3001,237.59,237.54,2.1035]
[1733673942932,3.2401,237.59,237.54,2.1035]
[1733673943137,3.2401,237.59,237.47,12.17342043]
[1733673943341,3.2401,237.59,237.53,2.1036]
[1733673944141,3.2401,237.59,237.47,10.23342043]
[1733673944343,10.23342043,237.58,237.46,1.94]
[1733673944735,12.33662043,237.58,237.5,2.1038]
[1733673944938,12.33662043,237.58,237.46,1.94]
[1733673945143,10.23342043,237.58,237.46,1.94]
[1733673945334,3.2401,237.59,237.47,10.23342043]
[1733673945640,1.94,237.59,237.47,10.23342043]
[1733673945943,12.17342043,237.61,237.55,2.1033]
[1733673946347,10.23342043,237.61,237.55,2.1033]
[1733673946548,12.17342043,237.61,237.55,2.1033]
[1733673947243,2.103,237.6,237.51,2.1037]
[1733673947548,12.17342043,237.61,237.47,10.23342043]
[1733673949546,2.1032,237.58,237.52,2.1037]
[1733673952440,1.94,237.61,237.54,2.1034]
[1733673952441,4.0429,237.61,237.54,2.1034]
[1733673952742,14.27632043,237.61,237.54,2.1034]
[1733673953641,12.17342043,237.61,237.53,2.1036]
[1733673954651,2.1032,237.58,237.53,2.1036]
[1733673957955,12.17342043,237.61,237.53,2.1036]
[1733673958154,2.1031,237.59,237.53,2.1036]
[1733673960350,10.23342043,237.58,237.46,1.94]
[1733673960556,12.33662043,237.58,237.52,2.1036]
[1733673960852,12.33662043,237.58,237.46,1.94]
[1733673961349,10.23342043,237.58,237.46,1.94]
[1733673961554,12.17342043,237.61,237.47,10.23342043]
[1733673962548,2.103,237.6,237.54,2.1035]
[1733673963755,2.1031,237.59,237.52,2.1036]
[1733673963950,10.23342043,237.58,237.44,1.94]
[1733673964153,10.23342043,237.54,237.43,1.3662]
[1733673964351,2.1037,237.53,237.43,1.3662]
[1733673964758,12.17342043,237.54,237.42,2.7406]
[1733673964759,10.23342043,237.51,237.42,2.7406]
[1733673964950,10.23342043,237.51,237.42,1.3668]
[1733673965356,10.23342043,237.48,237.43,2.1045]
[1733673965557,10.23342043,237.48,237.36,3.9688]
[1733673965858,10.23342043,237.48,237.37,1.94]
[1733673966758,10.23342043,237.48,237.4,2.1047]
[1733673967056,10.23342043,237.48,237.37,1.94]
[1733673967252,2.1042,237.47,237.39,2.1048]
[1733673967458,10.23342043,237.48,237.39,2.1048]
[1733673967856,10.23342043,237.48,237.36,3.9688]
[1733673968061,1.94,237.49,237.38,10.23342043]
[1733673968258,1.94,237.49,237.39,1.94]
[1733673968451,1.94,237.49,237.43,2.1045]
[1733673968654,10.23342043,237.48,237.36,3.9688]
[1733673969161,10.23342043,237.48,237.38,2.1048]
[1733673969162,2.1042,237.46,237.38,2.1048]
[1733673969562,10.23342043,237.45,237.36,1.3288]
[1733673969863,1.94,237.44,237.36,1.3288]
[1733673970362,1.94,237.44,237.39,2.1048]
[1733673970562,1.94,237.44,237.36,1.3288]
[1733673970753,1.94,237.44,237.32,1.94]
[1733673970967,10.23342043,237.42,237.32,1.94]
[1733673971456,10.23342043,237.42,237.3,1.94]
[1733673972659,2.1047,237.4,237.32,2.1054]
[1733673972852,2.1047,237.4,237.29,3.2513]
[1733673973053,10.23342043,237.39,237.29,3.2513]
[1733673973260,1.94,237.38,237.31,2.1055]
[1733673973660,1.94,237.38,237.29,1.3113]
[1733673974662,1.94,237.38,237.32,2.1054]
[1733673975666,1.94,237.38,237.33,2.1053]
[1733673975967,1.94,237.38,237.29,1.3113]
[1733673976666,1.3018,237.47,237.35,10.23342043]
[1733673976864,3.2813,237.48,237.35,10.23342043]
[1733673977065,1.94,237.47,237.43,2.1044]
[1733673977262,1.94,237.47,237.35,10.23342043]
[1733673977664,1.94,237.47,237.42,2.1045]
[1733673978060,1.94,237.47,237.35,10.23342043]
[1733673978260,1.94,237.47,237.4,2.1047]